Workbook

Sheet Home page
A1: Alternative mobility calculator KULKURI
A2: Version 1.1
A3: Welcome to KULKURI, the Alternative mobility calculator. The calculator is inteded to be used to calculate annual costs and annual lifecycle greenhouse gas (GHG) emissions of different mobility solutions other than car ownership.
A4: The calculator has been developed in the course of the CANEMURE LIFE IP project.
A6: Note: In case the calculator does not work when downloaded from the web, try to copy it from your Downloads folder to another destination in your computer.
A8: Developer: | B8: Jáchym Judl | C8: jachym.judl@syke.fi
A9: Last update: | B9: 1900-01-15
A11: Define your mobility needs in the sheets "Car transport", "Public transport" and "Active transport". By clicking on the hyperlinks below you will be directed there where input is needed.
A12: Cells highlighted like this require input. Fill in own parameter values or choose an option from a drop-down list.
A13: Cells highlighted like this contain default parameters. They can be modified by the user, if needed.
A15: Form of transport | B15: Costs per year | C15: Emissions per year
A16: Car rental | B16: ='Car transport'!C4 -> 0 | C16: ='Car transport'!C5 -> 0 | D16: kg CO2e
A17: Car rental (peer-to-peer) | B17: ='Car transport'!#REF! ->  | C17: ='Car transport'!#REF! ->  | D17: kg CO2e
A18: Car sharing | B18: ='Car transport'!Q4 -> 0 | C18: ='Car transport'!Q5 -> 0 | D18: kg CO2e
A19: Taxi | B19: ='Car transport'!Z4 -> 0 | C19: ='Car transport'!Z5 -> 0 | D19: kg CO2e
A20: City public transport | B20: ='Public transport'!C4 -> 0 | C20: ='Public transport'!C5 -> 0 | D20: kg CO2e
A21: Long-distance public transport | B21: ='Public transport'!C9 -> 0 | C21: ='Public transport'!C10 -> 0 | D21: kg CO2e
A22: Bicycle | B22: ='Active transport'!B10+'Active transport'!B32 -> 0 | C22: ='Active transport'!B11+'Active transport'!B33 -> 0 | D22: kg CO2e
A23: Electric bicycle | B23: ='Active transport'!F10*'Active transport'!F3 -> 0 | C23: ='Active transport'!F11*'Active transport'!F3 -> 0 | D23: kg CO2e
A24: (Electric) cargo bike | B24: ='Active transport'!J10 -> 0 | C24: ='Active transport'!J11 -> 0 | D24: kg CO2e
A25: Bike sharing | B25: ='Active transport'!O6 -> 0 | C25: ='Active transport'!O8 -> 0 | D25: kg CO2e
B26: =SUMIF(B16:B25,">0") -> 0 | C26: =ROUND(SUMIF(C16:C25,">0"),0)&" kg CO2e" -> 0 kg CO2e
A27: Distance driven in total: | D27: =('Car transport'!C3+'Car transport'!Q3+'Car transport'!Z3)& " km" -> 0 km
A28: Distance travelled by city public transport: | D28: =('Public transport'!$C$3)& " km" -> 0 km
A29: Distance travelled by long-distance public transport: | D29: =('Public transport'!$C$8)& " km" -> 0 km
A30: Distance travelled by bike: | D30: =ROUND(('Active transport'!$B$8+'Active transport'!$B$30+'Active transport'!$F$8+'Active transport'!$J$8+'Active transport'!$O$5),0)& " km" -> 0 km

Sheet Car transport
A1: Car rental | I1: select | O1: Car sharing | X1: Taxi | AF1: Van rental (possibly to be added)
A2: Summary: | G2: Rental costs | I2: Day rental | J2: 50 | K2: €/day | O2: Summary: | X2: Summary:
A3: Total distance driven in rental car, per year | C3: =SUMPRODUCT(D9:D28,B9:B28) -> 0 | D3: km | I3: Weekend rental | J3: 100 | K3: €/weekend | O3: Total distance driven in a shared car, per year | Q3: =SUMPRODUCT(O9:O28,P9:P28) -> 0 | R3: km | X3: Total distance driven in a taxi, per year | Z3: =SUMPRODUCT(X9:X28,Y9:Y28) -> 0 | AA3: km
A4: Total cost of renting, per year | C4: =SUM(J9:J28) -> 0 | D4: € | I4: Week rental | J4: 350 | K4: €/week | O4: Total cost of sharing, per year | Q4: =SUM(U9:U28) -> 0 | R4: € | X4: Total cost of taxi use, per year | Z4: =SUM(AC9:AC28) -> 0 | AA4: €
A5: Total emissions, per year | C5: =SUM(K9:K28) -> 0 | D5: kg CO2e | O5: Total emissions, per year | Q5: =SUM(V9:V28) -> 0 | R5: kg CO2e | X5: Total emissions, per year | Z5: =SUM(AD9:AD28) -> 0 | AA5: kg CO2e
A8: Length of rental | B8: Distance driven, per rental [km] | C8: Cost of rental [€/rental] | D8: Number of similar trips, per year | E8: Fuel type | F8: Number of additional drivers | G8: CDW | H8: Other extras, per rental | J8: Total cost [€] | K8: Emissions [kg CO2e] | M8: cost of rental [€/rental] - default equation | O8: Number of similar rentals, per year | P8: Distance driven, per rental [km] | Q8: Duration, per rental [min] | R8: Type of sharing service | S8: Fuel type | T8: Cost per rental [€] | U8: Total cost [€] | V8: Emissions [kg CO2e] | X8: Number of similar taxi rides, per year | Y8: Distance driven, per taxi ride [km] | Z8: day/night/weekend | AA8: Fuel type | AB8: Cost of the taxi ride | AC8: Total costs [€] | AD8: Emissions [kg CO2e]
A9: select | C9: =IF(A9=TEXT($I$2,),$J$2,IF(A9=TEXT($I$3,),$J$3,IF(A9=TEXT($I$4,),$J$4,))) -> 0 | D9: 1 | E9: petrol | F9: 0 | J9: =IF(A9=TEXT($I$2,),(D9*(C9+F9*$C$31+IF(G9="YES",$C$32,0)+H9)),IF(A9=TEXT($I$3,),(D9*(C9+F9*$C$31*3+IF(G9="YES",$C$32,0)*3+H9)),IF(A9=TEXT($I$4,),(D9*(C9+F9*$C$31*7+IF(G9="YES",$C$32,0)*7+H9)))))+IF(E9=TEXT($B$65,),($C$35*$C$40*B9)*D9,IF(E9=TEXT($C$65,),($C$36*$C$41*B9)*D9,IF(E9=TEXT($D$65,),($C$37*$C$42*B9)*D9,0))) -> 0 | K9: =IF(E9=TEXT($B$65,),(($D$55+$D$56)*$C$35*B9+$D$57*B9)*D9,IF(E9=TEXT($C$65,),(($D$58+$D$59)*$C$36*B9+$D$60*B9)*D9,IF(E9=TEXT($D$65,),(($D$61+$D$62)*$C$37*B9+$D$63*B9)*D9,0))) -> 0 | M9: =IF(A9=TEXT($I$2,),$J$2,IF(A9=TEXT($I$3,),$J$3,IF(A9=TEXT($I$4,),$J$4,))) -> 0 | R9: Service A | S9: petrol | T9: =IF(R9=TEXT($R$31,),($R$32+P9*$R$33+Q9*$R$34),IF(R9=TEXT($S$31,),($S$32+P9*$S$33+Q9*$S$34),IF(R9=TEXT($T$31,),($T$32+P9*$T$33+Q9*$T$34)))) -> 0 | U9: =T9*O9 -> 0 | V9: =IF(S9=TEXT($B$65,),(($D$55+$D$56)*$Q$39*P9+$D$57*P9)*O9,IF(S9=TEXT($C$65,),(($D$58+$D$59)*$Q$40*P9+$D$60*P9)*O9,IF(S9=TEXT($D$65,),(($D$61+$D$62)*$Q$41*P9+$D$63*P9)*O9,0))) -> 0 | Z9: weekend | AA9: diesel | AB9: =IF(Z9=TEXT($AA$31,),($AA$32+$AA$33*Y9),(IF(Z9=TEXT($AB$31,),($AB$32+Y9*$AB$33),(IF(Z9=TEXT($AC$31,),($AC$32+Y9*$AC$33),0)))))*IF(X9>0,1,0) -> 0 | AC9: =X9*AB9 -> 0 | AD9: =IF(AA9=$B$65,($D$55+$D$56)*$Z$39*Y9*X9+$D$57*Y9*X9,IF(AA9=$C$65,($D$58+$D$59)*$Z$40*Y9*X9+$D$60*Y9*X9,IF(AA9=$D$65,($D$61+$D$62)*$Z$41*Y9*X9+$D$63*Y9*X9,0))) -> 0
A10: select | C10: =IF(A10=TEXT($I$2,),$J$2,IF(A10=TEXT($I$3,),$J$3,IF(A10=TEXT($I$4,),$J$4,))) -> 0 | D10: 1 | E10: petrol | F10: 0 | J10: 0 | K10: =IF(E10=TEXT($B$65,),(($D$55+$D$56)*$C$35*B10+$D$57*B10)*D10,IF(E10=TEXT($C$65,),(($D$58+$D$59)*$C$35*B10+$D$60*B10)*D10,IF(E10=TEXT($D$65,),(($D$61+$D$62)*$C$35*B10+$D$63*B10)*D10,0))) -> 0 | M10: =IF(A10=TEXT($I$2,),$J$2,IF(A10=TEXT($I$3,),$J$3,IF(A10=TEXT($I$4,),$J$4,))) -> 0 | R10: Service A | S10: petrol | T10: 0 | U10: =T10*O10 -> 0 | V10: 0 | Z10: weekend | AA10: diesel | AB10: 0 | AC10: 0 | AD10: =IF(AA10=$B$65,($D$55+$D$56)*$Z$39*Y10*X10+$D$57*Y10*X10,IF(AA10=$C$65,($D$58+$D$59)*$Z$40*Y10*X10+$D$60*Y10*X10,IF(AA10=$D$65,($D$61+$D$62)*$Z$41*Y10*X10+$D$63*Y10*X10,0))) -> 0
A11: select | C11: =IF(A11=TEXT($I$2,),$J$2,IF(A11=TEXT($I$3,),$J$3,IF(A11=TEXT($I$4,),$J$4,))) -> 0 | D11: 1 | E11: petrol | F11: 0 | J11: 0 | K11: 0 | M11: 0 | R11: Service A | S11: petrol | T11: 0 | U11: 0 | V11: 0 | Z11: weekend | AA11: diesel | AB11: 0 | AC11: 0 | AD11: =IF(AA11=$B$65,($D$55+$D$56)*$Z$39*Y11*X11+$D$57*Y11*X11,IF(AA11=$C$65,($D$58+$D$59)*$Z$40*Y11*X11+$D$60*Y11*X11,IF(AA11=$D$65,($D$61+$D$62)*$Z$41*Y11*X11+$D$63*Y11*X11,0))) -> 0
A12: select | C12: =IF(A12=TEXT($I$2,),$J$2,IF(A12=TEXT($I$3,),$J$3,IF(A12=TEXT($I$4,),$J$4,))) -> 0 | D12: 1 | E12: petrol | F12: 0 | J12: 0 | K12: 0 | M12: 0 | R12: Service A | S12: petrol | T12: 0 | U12: 0 | V12: 0 | Z12: weekend | AA12: diesel | AB12: 0 | AC12: 0 | AD12: 0
A13: select | C13: =IF(A13=TEXT($I$2,),$J$2,IF(A13=TEXT($I$3,),$J$3,IF(A13=TEXT($I$4,),$J$4,))) -> 0 | D13: 1 | E13: petrol | F13: 0 | J13: 0 | K13: 0 | M13: 0 | R13: Service A | S13: petrol | T13: 0 | U13: 0 | V13: 0 | Z13: weekend | AA13: diesel | AB13: 0 | AC13: 0 | AD13: 0
A14: select | C14: =IF(A14=TEXT($I$2,),$J$2,IF(A14=TEXT($I$3,),$J$3,IF(A14=TEXT($I$4,),$J$4,))) -> 0 | D14: 1 | E14: petrol | F14: 0 | J14: 0 | K14: 0 | M14: 0 | R14: Service A | S14: petrol | T14: 0 | U14: 0 | V14: 0 | Z14: weekend | AA14: diesel | AB14: 0 | AC14: 0 | AD14: 0
A15: select | C15: =IF(A15=TEXT($I$2,),$J$2,IF(A15=TEXT($I$3,),$J$3,IF(A15=TEXT($I$4,),$J$4,))) -> 0 | D15: 1 | E15: petrol | F15: 0 | J15: 0 | K15: 0 | M15: 0 | R15: Service A | S15: petrol | T15: 0 | U15: 0 | V15: 0 | Z15: weekend | AA15: diesel | AB15: 0 | AC15: 0 | AD15: 0
A16: select | C16: =IF(A16=TEXT($I$2,),$J$2,IF(A16=TEXT($I$3,),$J$3,IF(A16=TEXT($I$4,),$J$4,))) -> 0 | D16: 1 | E16: petrol | F16: 0 | J16: 0 | K16: 0 | M16: =IF(A16=TEXT($I$2,),$J$2,IF(A16=TEXT($I$3,),$J$3,IF(A16=TEXT($I$4,),$J$4,))) -> 0 | R16: Service A | S16: petrol | T16: 0 | U16: 0 | V16: 0 | Z16: weekend | AA16: diesel | AB16: 0 | AC16: 0 | AD16: 0
A17: select | C17: =IF(A17=TEXT($I$2,),$J$2,IF(A17=TEXT($I$3,),$J$3,IF(A17=TEXT($I$4,),$J$4,))) -> 0 | D17: 1 | E17: petrol | F17: 0 | J17: 0 | K17: 0 | M17: 0 | R17: Service A | S17: petrol | T17: 0 | U17: 0 | V17: 0 | Z17: weekend | AA17: diesel | AB17: 0 | AC17: 0 | AD17: 0
A18: select | C18: =IF(A18=TEXT($I$2,),$J$2,IF(A18=TEXT($I$3,),$J$3,IF(A18=TEXT($I$4,),$J$4,))) -> 0 | D18: 1 | E18: petrol | F18: 0 | J18: 0 | K18: 0 | M18: 0 | R18: Service A | S18: petrol | T18: 0 | U18: 0 | V18: 0 | Z18: weekend | AA18: diesel | AB18: 0 | AC18: 0 | AD18: 0
A19: select | C19: =IF(A19=TEXT($I$2,),$J$2,IF(A19=TEXT($I$3,),$J$3,IF(A19=TEXT($I$4,),$J$4,))) -> 0 | D19: 1 | E19: petrol | F19: 0 | J19: 0 | K19: 0 | M19: 0 | R19: Service A | S19: petrol | T19: 0 | U19: 0 | V19: 0 | Z19: weekend | AA19: diesel | AB19: 0 | AC19: 0 | AD19: 0
A20: select | C20: =IF(A20=TEXT($I$2,),$J$2,IF(A20=TEXT($I$3,),$J$3,IF(A20=TEXT($I$4,),$J$4,))) -> 0 | D20: 1 | E20: petrol | F20: 0 | J20: 0 | K20: 0 | M20: 0 | R20: Service A | S20: petrol | T20: 0 | U20: 0 | V20: 0 | Z20: weekend | AA20: diesel | AB20: 0 | AC20: 0 | AD20: 0
A21: select | C21: =IF(A21=TEXT($I$2,),$J$2,IF(A21=TEXT($I$3,),$J$3,IF(A21=TEXT($I$4,),$J$4,))) -> 0 | D21: 1 | E21: petrol | F21: 0 | J21: 0 | K21: 0 | M21: 0 | R21: Service A | S21: petrol | T21: 0 | U21: 0 | V21: 0 | Z21: weekend | AA21: diesel | AB21: 0 | AC21: 0 | AD21: 0
A22: select | C22: =IF(A22=TEXT($I$2,),$J$2,IF(A22=TEXT($I$3,),$J$3,IF(A22=TEXT($I$4,),$J$4,))) -> 0 | D22: 1 | E22: petrol | F22: 0 | J22: 0 | K22: 0 | M22: 0 | R22: Service A | S22: petrol | T22: 0 | U22: 0 | V22: 0 | Z22: weekend | AA22: diesel | AB22: 0 | AC22: 0 | AD22: 0
A23: select | C23: =IF(A23=TEXT($I$2,),$J$2,IF(A23=TEXT($I$3,),$J$3,IF(A23=TEXT($I$4,),$J$4,))) -> 0 | D23: 1 | E23: petrol | F23: 0 | J23: 0 | K23: 0 | M23: 0 | R23: Service A | S23: petrol | T23: 0 | U23: 0 | V23: 0 | Z23: weekend | AA23: diesel | AB23: 0 | AC23: 0 | AD23: 0
A24: select | C24: =IF(A24=TEXT($I$2,),$J$2,IF(A24=TEXT($I$3,),$J$3,IF(A24=TEXT($I$4,),$J$4,))) -> 0 | D24: 1 | E24: petrol | F24: 0 | J24: 0 | K24: 0 | M24: 0 | R24: Service A | S24: petrol | T24: 0 | U24: 0 | V24: 0 | Z24: weekend | AA24: diesel | AB24: 0 | AC24: 0 | AD24: 0
A25: select | C25: =IF(A25=TEXT($I$2,),$J$2,IF(A25=TEXT($I$3,),$J$3,IF(A25=TEXT($I$4,),$J$4,))) -> 0 | D25: 1 | E25: petrol | F25: 0 | J25: 0 | K25: 0 | M25: 0 | R25: Service A | S25: petrol | T25: 0 | U25: 0 | V25: 0 | Z25: weekend | AA25: diesel | AB25: 0 | AC25: 0 | AD25: 0
A26: select | C26: =IF(A26=TEXT($I$2,),$J$2,IF(A26=TEXT($I$3,),$J$3,IF(A26=TEXT($I$4,),$J$4,))) -> 0 | D26: 1 | E26: petrol | F26: 0 | J26: 0 | K26: 0 | M26: 0 | R26: Service A | S26: petrol | T26: 0 | U26: 0 | V26: 0 | Z26: weekend | AA26: diesel | AB26: 0 | AC26: 0 | AD26: 0
A27: select | C27: =IF(A27=TEXT($I$2,),$J$2,IF(A27=TEXT($I$3,),$J$3,IF(A27=TEXT($I$4,),$J$4,))) -> 0 | D27: 1 | E27: petrol | F27: 0 | J27: 0 | K27: 0 | M27: 0 | R27: Service A | S27: petrol | T27: 0 | U27: 0 | V27: 0 | Z27: weekend | AA27: diesel | AB27: 0 | AC27: 0 | AD27: 0
A28: select | C28: =IF(A28=TEXT($I$2,),$J$2,IF(A28=TEXT($I$3,),$J$3,IF(A28=TEXT($I$4,),$J$4,))) -> 0 | D28: 1 | E28: petrol | F28: 0 | J28: 0 | K28: 0 | M28: 0 | R28: Service A | S28: petrol | T28: 0 | U28: 0 | V28: 0 | Z28: weekend | AA28: diesel | AB28: 0 | AC28: 0 | AD28: 0
A30: Optional rental costs
A31: Additional driver | B31: €/day | C31: 10 | Q31: select | R31: Service A | S31: Service B | T31: Service C | AA31: day | AB31: night | AC31: weekend
A32: CDW waiver | B32: €/day | C32: 15 | O32: Starting fee | Q32: € | R32: 0 | S32: 0 | T32: currently not implemented | X32: Starting fee | Z32: € | AA32: 4 | AB32: 7 | AC32: 7
O33: Price, per km | Q33: €/km | R33: 0 | S33: 0.15 | X33: Price, per km | Z33: €/km | AA33: 1 | AB33: 1.1 | AC33: 1.1
A34: Car parameters | O34: Price, per minute | Q34: €/min | R34: 0.47 | S34: 0.2 | X34: Price, per minute | Z34: €/min | AA34: currently not implemented
A35: Fuel consumption (petrol) | B35: l/km | C35: 0.055
A36: Fuel consumption (diesel) | B36: l/km | C36: 0.055
A37: Electricity consumption | B37: kWh/km | C37: 0.017
O38: Car parameters | X38: Car parameters
A39: Fuel cost | O39: Fuel consumption (petrol) | P39: l/km | Q39: 0.055 | X39: Fuel consumption (petrol) | Y39: l/km | Z39: 0.055
A40: Petrol | B40: €/l | C40: 1.45 | O40: Fuel consumption (diesel) | P40: l/km | Q40: 0.055 | X40: Fuel consumption (diesel) | Y40: l/km | Z40: 0.055
A41: Diesel | B41: €/l | C41: 1.25 | O41: Electricity consumption | P41: kWh/km | Q41: 0.17 | X41: Electricity consumption | Y41: kWh/km | Z41: 0.17
A42: Electricity | B42: €/kWh | C42: 0.22
A44: Lifespan mileage
A45: Petrol / diesel car, medium size | B45: km | C45: 300000
A46: Electric car, medium size (40 kWh battery) | B46: km | C46: 200000
A49: Emission factors (Source: Autokalkulaattori.fi) ↓
A50: car manufacturing (Source: Autokalkulaattori.fi)
A51: Petrol / diesel car, medium size | B51: t CO2e | C51: 5.36
A52: Electric car, medium size (40 kWh battery) | B52: t CO2e | C52: =6.52+40*0.1 -> 10.52
A54: Emission factors (Source: Autokalkulaattori.fi)
A55: Petrol | B55: direct emissions | C55: kg CO2-ekv/l | D55: 2.348
B56: fuel production emissions | C56: kg CO2-ekv/l | D56: 0.655
B57: car production emissions | C57: kg CO2-ekv/km | D57: =C51*1000/C45 -> 0.01786666667
A58: Diesel | B58: direct emissions | C58: kg CO2-ekv/l | D58: 2.689
B59: production emissions | C59: kg CO2-ekv/l | D59: 0.75
B60: car production emissions | C60: kg CO2-ekv/km | D60: =C51*1000/C45 -> 0.01786666667
A61: Electric | B61: direct emissions | C61: kg CO2-ekv/kWh | D61: 0.096
B62: production emissions | C62: kg CO2-ekv/kWh | D62: 0.016
B63: car production emissions | C63: kg CO2-ekv/km | D63: =C52*1000/C46 -> 0.0526
A65: Fuel type | B65: petrol | C65: diesel | D65: electric

Sheet Public transport
A1: Public transport
A2: Summary (city public transport): | H2: Number of months with a valid city public transport period ticket, per household, per year
A3: Total distance travelled in city public transport, per year | C3: =SUM(F15:F34) -> 0 | D3: km | H3: adults | J3: 0
A4: Total cost of city public transport, per year | C4: =SUMIF(B15:B34,TEXT(A39,),I15:I34)+SUMIF(B15:B34,TEXT(A41,),I15:I34)+SUMIF(B15:B34,TEXT(A43,),I15:I34)+SUMIF(B15:B34,TEXT(A44,),I15:I34)+J8*J3+J9*J4 -> 0 | D4: € | H4: children | J4: 0
A5: Total emissions, per year | C5: =SUMIF(B15:B34,TEXT(A39,),J15:J34)+SUMIF(B15:B34,TEXT(A41,),J15:J34)+SUMIF(B15:B34,TEXT(A43,),J15:J34)+SUMIF(B15:B34,TEXT(A44,),J15:J34) -> 0 | D5: kg CO2e
H6: Cost of public transport tickets (period ticket and different single tickets)
A7: Summary (long-distance transport): | H7: Ticket type
A8: Total distance travelled in long-distance public transport, per year | C8: =SUM(G15:G34) -> 0 | D8: km | H8: Period ticket (adult) | I8: €/month | J8: 55
A9: Total cost of long-distance public transport, per year | C9: =SUMIF(B15:B34,TEXT(A40,),I15:I34)+SUMIF(B15:B34,TEXT(A42,),I15:I34) -> 0 | D9: € | H9: Period ticket (child) | I9: €/month | J9: 27.4
A10: Total emissions, per year | C10: =SUMIF(B15:B34,TEXT(A40,),J15:J34)+SUMIF(B15:B34,TEXT(A42,),J15:J34) -> 0 | D10: kg CO2e | H10: Single ticket A | I10: €/ticket | J10: 3
H11: Single ticket B | I11: €/ticket | J11: 4
H12: Single ticket C | I12: €/ticket | J12: 6
A14: Number of simiar trips, per year | B14: Mean of transport | C14: Distance per trip [km] | D14: Ticket type | E14: Long distance transport ticket price | F14: city public transport distance, per defined number of trips [km] | G14: long-distance public transport distance, per defined number of trips [km] | H14: Cost of the trip (if paid per trip) [€] | I14: Total cost (if paid per trip) [€] | J14: Emissions [kg CO2e] | L14: distance per trip | M14: long distance transport ticket price
B15: select | C15: =IF(B15=TEXT($A$39,),10,IF(B15=TEXT($A$43,),5,IF(B15=TEXT($A$44,),10,IF(B15=TEXT($A$41,),15,IF(B15=TEXT($A$40,),150,IF(B15=TEXT($A$42,),300,)))))) -> 0 | D15: select | E15: =IF(B15=TEXT($A$40,),20,IF(B15=TEXT($A$42,),40,0)) -> 0 | F15: =IF(B15=TEXT($A$39,),A15*C15,IF(B15=TEXT($A$43,),A15*C15,IF(B15=TEXT($A$44,),A15*C15,IF(B15=TEXT($A$41,),A15*C15)))) -> FALSE | G15: =IF(B15=TEXT($A$40,),A15*C15,IF(B15=TEXT($A$42,),A15*C15)) -> FALSE | H15: =IF(D15=TEXT($H$8,),0,IF(D15=TEXT($H$10,),$J$10,(IF(D15=TEXT($H$11,),$J$11,(IF(D15=TEXT($H$12,),$J$12,0))))))+E15 -> 0 | I15: =A15*H15 -> 0 | J15: =(IF(B15=TEXT($A$39,),$B$39,IF(B15=TEXT($A$40,),$B$40,IF(B15=TEXT($A$41,),$B$41,IF(B15=TEXT($A$42,),$B$42,IF(B15=TEXT($A$43,),$B$43,IF(B15=TEXT($A$44,),$B$44,0)))))))/1000*C15*A15 -> 0 | L15: =IF(B15=TEXT($A$39,),10,IF(B15=TEXT($A$43,),5,IF(B15=TEXT($A$44,),10,IF(B15=TEXT($A$41,),15,IF(B15=TEXT($A$40,),150,IF(B15=TEXT($A$42,),300,)))))) -> 0 | M15: =IF(B15=TEXT($A$40,),20,IF(B15=TEXT($A$42,),40,0)) -> 0
B16: select | C16: =IF(B16=TEXT($A$39,),10,IF(B16=TEXT($A$43,),5,IF(B16=TEXT($A$44,),10,IF(B16=TEXT($A$41,),15,IF(B16=TEXT($A$40,),150,IF(B16=TEXT($A$42,),300,)))))) -> 0 | D16: select | E16: =IF(B16=TEXT($A$40,),20,IF(B16=TEXT($A$42,),40,0)) -> 0 | F16: =IF(B16=TEXT($A$39,),A16*C16,IF(B16=TEXT($A$43,),A16*C16,IF(B16=TEXT($A$44,),A16*C16,IF(B16=TEXT($A$41,),A16*C16)))) -> FALSE | G16: =IF(B16=TEXT($A$40,),A16*C16,IF(B16=TEXT($A$42,),A16*C16)) -> FALSE | H16: 0 | I16: =A16*H16 -> 0 | J16: 0 | L16: =IF(B16=TEXT($A$39,),10,IF(B16=TEXT($A$43,),5,IF(B16=TEXT($A$44,),10,IF(B16=TEXT($A$41,),15,IF(B16=TEXT($A$40,),150,IF(B16=TEXT($A$42,),300,)))))) -> 0 | M16: =IF(B16=TEXT($A$40,),20,IF(B16=TEXT($A$42,),40,0)) -> 0
B17: select | C17: =IF(B17=TEXT($A$39,),10,IF(B17=TEXT($A$43,),5,IF(B17=TEXT($A$44,),10,IF(B17=TEXT($A$41,),15,IF(B17=TEXT($A$40,),150,IF(B17=TEXT($A$42,),300,)))))) -> 0 | D17: select | E17: =IF(B17=TEXT($A$40,),20,IF(B17=TEXT($A$42,),40,0)) -> 0 | F17: FALSE | G17: FALSE | H17: 0 | I17: 0 | J17: 0 | L17: 0 | M17: 0
B18: select | C18: =IF(B18=TEXT($A$39,),10,IF(B18=TEXT($A$43,),5,IF(B18=TEXT($A$44,),10,IF(B18=TEXT($A$41,),15,IF(B18=TEXT($A$40,),150,IF(B18=TEXT($A$42,),300,)))))) -> 0 | D18: select | E18: =IF(B18=TEXT($A$40,),20,IF(B18=TEXT($A$42,),40,0)) -> 0 | F18: FALSE | G18: FALSE | H18: 0 | I18: 0 | J18: 0 | L18: 0 | M18: 0
B19: select | C19: =IF(B19=TEXT($A$39,),10,IF(B19=TEXT($A$43,),5,IF(B19=TEXT($A$44,),10,IF(B19=TEXT($A$41,),15,IF(B19=TEXT($A$40,),150,IF(B19=TEXT($A$42,),300,)))))) -> 0 | D19: select | E19: =IF(B19=TEXT($A$40,),20,IF(B19=TEXT($A$42,),40,0)) -> 0 | F19: FALSE | G19: FALSE | H19: 0 | I19: 0 | J19: 0 | L19: 0 | M19: 0
B20: select | C20: =IF(B20=TEXT($A$39,),10,IF(B20=TEXT($A$43,),5,IF(B20=TEXT($A$44,),10,IF(B20=TEXT($A$41,),15,IF(B20=TEXT($A$40,),150,IF(B20=TEXT($A$42,),300,)))))) -> 0 | D20: select | E20: =IF(B20=TEXT($A$40,),20,IF(B20=TEXT($A$42,),40,0)) -> 0 | F20: FALSE | G20: FALSE | H20: 0 | I20: 0 | J20: 0 | L20: 0 | M20: 0
B21: select | C21: =IF(B21=TEXT($A$39,),10,IF(B21=TEXT($A$43,),5,IF(B21=TEXT($A$44,),10,IF(B21=TEXT($A$41,),15,IF(B21=TEXT($A$40,),150,IF(B21=TEXT($A$42,),300,)))))) -> 0 | D21: select | E21: =IF(B21=TEXT($A$40,),20,IF(B21=TEXT($A$42,),40,0)) -> 0 | F21: FALSE | G21: FALSE | H21: 0 | I21: 0 | J21: 0 | L21: 0 | M21: 0
B22: select | C22: =IF(B22=TEXT($A$39,),10,IF(B22=TEXT($A$43,),5,IF(B22=TEXT($A$44,),10,IF(B22=TEXT($A$41,),15,IF(B22=TEXT($A$40,),150,IF(B22=TEXT($A$42,),300,)))))) -> 0 | D22: select | E22: =IF(B22=TEXT($A$40,),20,IF(B22=TEXT($A$42,),40,0)) -> 0 | F22: FALSE | G22: FALSE | H22: 0 | I22: 0 | J22: 0 | L22: 0 | M22: 0
B23: select | C23: =IF(B23=TEXT($A$39,),10,IF(B23=TEXT($A$43,),5,IF(B23=TEXT($A$44,),10,IF(B23=TEXT($A$41,),15,IF(B23=TEXT($A$40,),150,IF(B23=TEXT($A$42,),300,)))))) -> 0 | D23: select | E23: =IF(B23=TEXT($A$40,),20,IF(B23=TEXT($A$42,),40,0)) -> 0 | F23: FALSE | G23: FALSE | H23: 0 | I23: 0 | J23: 0 | L23: 0 | M23: 0
B24: select | C24: =IF(B24=TEXT($A$39,),10,IF(B24=TEXT($A$43,),5,IF(B24=TEXT($A$44,),10,IF(B24=TEXT($A$41,),15,IF(B24=TEXT($A$40,),150,IF(B24=TEXT($A$42,),300,)))))) -> 0 | D24: select | E24: =IF(B24=TEXT($A$40,),20,IF(B24=TEXT($A$42,),40,0)) -> 0 | F24: FALSE | G24: FALSE | H24: 0 | I24: 0 | J24: 0 | L24: 0 | M24: 0
B25: select | C25: =IF(B25=TEXT($A$39,),10,IF(B25=TEXT($A$43,),5,IF(B25=TEXT($A$44,),10,IF(B25=TEXT($A$41,),15,IF(B25=TEXT($A$40,),150,IF(B25=TEXT($A$42,),300,)))))) -> 0 | D25: select | E25: =IF(B25=TEXT($A$40,),20,IF(B25=TEXT($A$42,),40,0)) -> 0 | F25: FALSE | G25: FALSE | H25: 0 | I25: 0 | J25: 0 | L25: 0 | M25: 0
B26: select | C26: =IF(B26=TEXT($A$39,),10,IF(B26=TEXT($A$43,),5,IF(B26=TEXT($A$44,),10,IF(B26=TEXT($A$41,),15,IF(B26=TEXT($A$40,),150,IF(B26=TEXT($A$42,),300,)))))) -> 0 | D26: select | E26: =IF(B26=TEXT($A$40,),20,IF(B26=TEXT($A$42,),40,0)) -> 0 | F26: FALSE | G26: FALSE | H26: 0 | I26: 0 | J26: 0 | L26: 0 | M26: 0
B27: select | C27: =IF(B27=TEXT($A$39,),10,IF(B27=TEXT($A$43,),5,IF(B27=TEXT($A$44,),10,IF(B27=TEXT($A$41,),15,IF(B27=TEXT($A$40,),150,IF(B27=TEXT($A$42,),300,)))))) -> 0 | D27: select | E27: =IF(B27=TEXT($A$40,),20,IF(B27=TEXT($A$42,),40,0)) -> 0 | F27: FALSE | G27: FALSE | H27: 0 | I27: 0 | J27: 0 | L27: 0 | M27: 0
B28: select | C28: =IF(B28=TEXT($A$39,),10,IF(B28=TEXT($A$43,),5,IF(B28=TEXT($A$44,),10,IF(B28=TEXT($A$41,),15,IF(B28=TEXT($A$40,),150,IF(B28=TEXT($A$42,),300,)))))) -> 0 | D28: select | E28: =IF(B28=TEXT($A$40,),20,IF(B28=TEXT($A$42,),40,0)) -> 0 | F28: FALSE | G28: FALSE | H28: 0 | I28: 0 | J28: 0 | L28: 0 | M28: 0
B29: select | C29: =IF(B29=TEXT($A$39,),10,IF(B29=TEXT($A$43,),5,IF(B29=TEXT($A$44,),10,IF(B29=TEXT($A$41,),15,IF(B29=TEXT($A$40,),150,IF(B29=TEXT($A$42,),300,)))))) -> 0 | D29: select | E29: =IF(B29=TEXT($A$40,),20,IF(B29=TEXT($A$42,),40,0)) -> 0 | F29: FALSE | G29: FALSE | H29: 0 | I29: 0 | J29: 0 | L29: 0 | M29: 0
B30: select | C30: =IF(B30=TEXT($A$39,),10,IF(B30=TEXT($A$43,),5,IF(B30=TEXT($A$44,),10,IF(B30=TEXT($A$41,),15,IF(B30=TEXT($A$40,),150,IF(B30=TEXT($A$42,),300,)))))) -> 0 | D30: select | E30: =IF(B30=TEXT($A$40,),20,IF(B30=TEXT($A$42,),40,0)) -> 0 | F30: FALSE | G30: FALSE | H30: 0 | I30: 0 | J30: 0 | L30: 0 | M30: 0
B31: select | C31: =IF(B31=TEXT($A$39,),10,IF(B31=TEXT($A$43,),5,IF(B31=TEXT($A$44,),10,IF(B31=TEXT($A$41,),15,IF(B31=TEXT($A$40,),150,IF(B31=TEXT($A$42,),300,)))))) -> 0 | D31: select | E31: =IF(B31=TEXT($A$40,),20,IF(B31=TEXT($A$42,),40,0)) -> 0 | F31: FALSE | G31: FALSE | H31: 0 | I31: 0 | J31: 0 | L31: 0 | M31: 0
B32: select | C32: =IF(B32=TEXT($A$39,),10,IF(B32=TEXT($A$43,),5,IF(B32=TEXT($A$44,),10,IF(B32=TEXT($A$41,),15,IF(B32=TEXT($A$40,),150,IF(B32=TEXT($A$42,),300,)))))) -> 0 | D32: select | E32: =IF(B32=TEXT($A$40,),20,IF(B32=TEXT($A$42,),40,0)) -> 0 | F32: FALSE | G32: FALSE | H32: 0 | I32: 0 | J32: 0 | L32: 0 | M32: 0
B33: select | C33: =IF(B33=TEXT($A$39,),10,IF(B33=TEXT($A$43,),5,IF(B33=TEXT($A$44,),10,IF(B33=TEXT($A$41,),15,IF(B33=TEXT($A$40,),150,IF(B33=TEXT($A$42,),300,)))))) -> 0 | D33: select | E33: =IF(B33=TEXT($A$40,),20,IF(B33=TEXT($A$42,),40,0)) -> 0 | F33: FALSE | G33: FALSE | H33: 0 | I33: 0 | J33: 0 | L33: 0 | M33: 0
B34: select | C34: =IF(B34=TEXT($A$39,),10,IF(B34=TEXT($A$43,),5,IF(B34=TEXT($A$44,),10,IF(B34=TEXT($A$41,),15,IF(B34=TEXT($A$40,),150,IF(B34=TEXT($A$42,),300,)))))) -> 0 | D34: select | E34: =IF(B34=TEXT($A$40,),20,IF(B34=TEXT($A$42,),40,0)) -> 0 | F34: FALSE | G34: FALSE | H34: 0 | I34: 0 | J34: 0 | L34: 0 | M34: 0
A36: Hidden rows below contain emission factors from Ilmastodieetti.fi ↓
A37: Source: VTT’s LIPASTO database (data from 2016), complemented with estimated emissions from the fuel supply chain (diesel approximately 20%) and fleet production (approximately 1 g per passenger km). (as done in Ilmastodieetti) | I37: http://lipasto.vtt.fi/yksikkopaastot/henkiloliikenne/tieliikenne/linja-autot/bussilinjaautokeskimaarin.htm
A38: select | B38: g CO2eq/passenger km
A39: bus, local | B39: =53*1.2+1 -> 64.6 | C39: Note: Lipasto gives 41 g CO2eq/hkm pitkän matkan bussille and 53 g CO2eq/hkm kaupunkibussille (average in 2016).
A40: bus, long-distance | B40: =41*1.2+1 -> 50.2
A41: train, local | B41: 1 | C41: VR and HKL use green electricity, and the calculated emissions factor of green electricity is 0 g CO2eq/kWh. The figure 1 g CO2eq/kWh is derived from the estimated emissions from fleet production. (as done in Ilmastodieetti) According to Lipast (2016) Intercity train's energy consumption is 0,054 kWh/pkm and 0,071 kWh/pkm per Sm5 (FLIRT) commuter train. Multiplying these values with the emission factor of electricity production leads to far lower numbers than the used 1 g CO2e. 6,048 g/pkm for the intercity train and 7,952 g/pkm for the commuter train. For metro the Lipasto reported consumption is 0,18 kWh/pkm (20,16 g CO2e/pkm if average grid mix is considered). For metro the reported consumption is 0,24 kWh/pkm (60,88 g CO2e/pkm if average grid mix is considered).
A42: train, long-distance | B42: 1
A43: tram | B43: 1
A44: metro | B44: 1

Sheet Active transport
A1: Bicycle (adult) | E1: Electric bicycle | I1: (Electric) cargo bicycle | N1: Bike sharing | R1: E-scooters - may be implemeted, depending on the data availability
A3: Number of bikes, per household | B3: 0 | E3: Number of e-bikes, per household | F3: 0 | I3: Electric cargo bike? | K3: NO | N3: Summary, bike sharing
A4: Months of commuting by a bicycle | B4: 0 | C4: months | E4: Months of commuting by an e-bike | F4: 0 | G4: months | N4: Total number of rides, per year | O4: 0 | P4: rides
A5: Average length of a commute | B5: 3.3 | C5: km | E5: Average length of a commute | F5: 3.3 | G5: km | I5: Used or new? | K5: NEW | N5: Number of kilometers ridden on a shared bike, per year | O5: =O4*P49 -> 0 | P5: km
N6: Total cost, per year | O6: =(P11+P12)*IF(O4=0,0,1) -> 0 | P6: €
A7: Summary, bicycle (adult) | E7: Summary, e-bike | I7: Summary, cargo bike | N7: Cost, per ride | O7: =O6/O4 ->  | P7: €
A8: Total distance ridden on commuter bicycle, per year | B8: =21*B4*bike_commute_km*2*bike_number -> 0 | C8: km | E8: Total distance ridden on commuter e-bike, per year | F8: =21*F4*ebike_commute_km*2*ebike_number -> 0 | G8: km | I8: Total distance ridden on a (electric) cargo bicycle, per year | J8: 0 | K8: km | N8: Emissions, per year | O8: =P46*O4*IF(O4=0,0,1) -> 0 | P8: kg CO2e
A9: How long do you keep your commuter bike? | B9: 15 | C9: years | E9: How long do you keep your commuter e-bike? | F9: 15 | G9: years | I9: How long do you keep your cargo bike? | J9: 15 | K9: years
A10: Total cost, per year | B10: =IF(B4=0,0,B3*((C14-C15)/B9+C16+C17/4+(C18/4)*IF(C20="YES",1,0)+C19/B9)) -> 0 | C10: € | E10: Total cost, per year | F10: =IF(F4=0,0,F3*((G14-G15)/F9+G16+G17/4+G19/F9+(G27/F9)*IF(G21="YES",1,0)+(G18/4)*IF(G20="YES",1,0)+G33*((G25/G29)*(G30/1000)))) -> 0 | G10: € | I10: Total cost, per year | J10: =IF(J8=0,0,(K14-K15)/J9+K16+K18/4+K20/J9+(K19/4)*IF(K21="YES",1,0)+(K33*((K25/K29)*(K30/1000)+(K27/J9)*IF(K22="YES",1,0))*IF(K3="YES",1,0))) -> 0 | K10: €
A11: Emissions, per year | B11: =IF(B3=0,0,B3*(C46*(1-(C15/C14))/B9)) -> 0 | C11: kg CO2e | E11: Emissions, per year | F11: =IF(F4=0,0,F3*(G25/G29/1000*G33*(G41+G42)+G37*(1-(G15/G14))/F9+IF(G21="YES",G38*(1-(G15/G14))/F9,0))) -> 0 | G11: kg CO2e | I11: Emissions, per year | J11: =IF(J8=0,0,K25/K29/1000+K37*(1-(K15/K14))/J9*K33*(G41+G42)+IF(K22="YES",K38*(1-(K15/K14))/J9,0)) -> 0 | K11: kg CO2e | N11: Seasonal pass | O11: € | P11: 35
N12: Extra costs (overtime fees) | O12: € | P12: 0
A14: Purchase price | B14: € | C14: 700 | E14: Purchase price | F14: € | G14: 2500 | I14: Purchase price | J14: € | K14: =IF(cargo_bike_electric="YES",IF(cargo_bike_type="two-wheeler",5000,4000),IF(cargo_bike_type="two-wheeler",3000,2000))*IF(cargo_bike_new="USED",0.5,1) -> 3000 | L14: =IF(cargo_bike_electric="YES",IF(cargo_bike_type="two-wheeler",5000,4000),IF(cargo_bike_type="two-wheeler",3000,2000))*IF(cargo_bike_new="USED",0.5,1) -> 3000
A15: Resale value | B15: € | C15: 0 | E15: Resale value | F15: € | G15: 0 | I15: Resale value | J15: € | K15: 0
A16: Annual service costs (yearly basic maintenance) | B16: € | C16: 70 | E16: Annual service costs (yearly basic maintenance) | F16: € | G16: 100 | I16: Annual service costs (yearly basic maintenance) | J16: € | K16: 150
A17: Summer tyres (set of two) | B17: € | C17: 50 | E17: Summer tyres (set of two) | F17: € | G17: 50 | I17: Type of cargo bike | K17: two-wheeler
A18: Winter tyres (set of two) | B18: € | C18: 100 | E18: Winter tyres (set of two) | F18: € | G18: 100 | I18: Summer tyres (set of two or three) | J18: € | K18: =IF(K17="two-wheeler",50,75) -> 50 | L18: =IF(K17="two-wheeler",50,75) -> 50
A19: Accessories | B19: € | E19: Accessories | F19: € | I19: Winter tyres (set of two or three) | J19: € | K19: =IF(K17="two-wheeler",100,150) -> 100 | L19: =IF(K17="two-wheeler",100,150) -> 100
A20: Riding in winter? | C20: NO | E20: Riding in winter? | G20: NO | I20: Accessories | J20: €
E21: Buying a new/second battery during the e-bike ownership? | G21: NO | I21: Riding in winter? | K21: NO
I22: Buying a new/second battery during the e-bike ownership? | K22: NO
A24: Bicycle (child) | E24: Battery parameters | I24: Battery parameters
A25: Number of bikes, per household | B25: 0 | E25: Battery capacity (Wh) | F25: Wh | G25: 400 | I25: Battery capacity (Wh) | J25: Wh | K25: 400
A26: Months of commuting by a bicycle | B26: 0 | C26: months | E26: Distance per charge | F26: km | G26: 40 | I26: Distance per charge | J26: km | K26: 40
A27: Average length of a commute | B27: 3.3 | C27: km | E27: Cost of a new battery | F27: € | G27: 500 | I27: Cost of a new battery | J27: € | K27: 500
E28: Battery lifetime | F28: charges | G28: 300 | I28: Battery lifetime | J28: charges | K28: 300
A29: Summary, bicycle (child) | E29: Efficiency coefficient of charging | G29: 0.8 | I29: Efficiency coefficient of charging | K29: 0.8
A30: Total distance ridden on commuter bicycle, per year | B30: =21*B26*bike_child_commute_km*2*bike_child_number -> 0 | C30: km | E30: Cost of electricity | F30: €/kWh | G30: 0.22 | I30: Cost of electricity | J30: €/kWh | K30: 0.22
A31: How long do you keep your commuter bike? | B31: 5 | C31: years
A32: Total cost, per year | B32: =IF(B26=0,0,B25*((C36-C37)/B31+C38+C39/4+(C40/4)*IF(C42="YES",1,0)+C41/B31)) -> 0 | C32: € | E32: Calculated values | I32: Calculated values
A33: Emissions, per year | B33: =IF(B26=0,0,B25*(C46*(1-(C37/C36))/B31)) -> 0 | C33: kg CO2e | E33: Number of charges, per year | F33: charges/year | G33: =F8/G26 -> 0 | I33: Number of charges, per year | J33: charges/year | K33: =J8/K26 -> 0
E34: Battery lifetime | F34: years | G34: =G28/G33 ->  | I34: Battery lifetime | J34: years | K34: =K28/K33 -> 
A36: Purchase price | B36: € | C36: 300 | E36: Emission factors, IPCC 2013 (Source: Ecoinvent v7) | I36: Emission factors, IPCC 2013 (Source:Zacke (2016), Ecoinvent v7)
A37: Resale value | B37: € | C37: 100 | E37: e-bike, production | F37: kg CO2e | G37: 159 | I37: cargo bike, production | J37: kg CO2e | K37: 450
A38: Annual service costs (yearly basic maintenance) | B38: € | C38: 35 | E38: battery, Li-ion, rechargeable, prismatic, production | F38: kg CO2e | G38: 8.2 | I38: battery, Li-ion, rechargeable, prismatic, production | J38: kg CO2e | K38: 8.2
A39: Summer tyres (set of two) | B39: € | C39: 50
A40: Winter tyres (set of two) | B40: € | C40: 100 | E40: Electricity (Source: Autokalkulaattori)
A41: Accessories | B41: € | E41: direct emissions | F41: kg CO2-ekv/kWh | G41: 0.096
A42: Riding in winter? | C42: NO | E42: production emissions | F42: kg CO2-ekv/kWh | G42: 0.016
A45: Emission factor, IPCC 2013 (Source: Ecoinvent v7) | N45: emission factor, IPCC 2013 (Source: Ecoinvent v7)
A46: bicycle, production | B46: kg CO2e | C46: 141.6 | N46: bike sharing, per average ride | O46: kg CO2e | P46: 0.615
N48: Average distance of a shared bike trip. Data source: City Bike Finland
N49: Shared bike trip, 2019-2020 average, Helsinki and Espoo | O49: km | P49: =AVERAGE('Ciry Bike Finland - data'!B17:C17) -> 2.220911607

Sheet Ciry Bike Finland - data (hidden)
A1: City Bikes Finland
A2: Bike sharing in Helsinki and Espoo (combined data)
A3: Average distance of a single bike sharing trip in 2020, in kilometers
A5: Data source: dev.hsl.fi/citybikes/od-trips-2020/od-trips-2020.zip
A6: Data retrieved 13.11.2020
A8: km | B8: 2019 | C8: 2020
A9: March | C9: =2525.5/1000 -> 2.5255
A10: April | B10: =2022/1000 -> 2.022 | C10: =2606.5/1000 -> 2.6065
A11: May | B11: =2083.5/1000 -> 2.0835 | C11: =2598.8/1000 -> 2.5988
A12: June | B12: =2189/1000 -> 2.189 | C12: =2462.1/1000 -> 2.4621
A13: July | B13: =2166.3/1000 -> 2.1663 | C13: =2288.5/1000 -> 2.2885
A14: August | B14: =2099.9/1000 -> 2.0999 | C14: =2333.4/1000 -> 2.3334
A15: September | B15: =1944.5/1000 -> 1.9445 | C15: =2171.2/1000 -> 2.1712
A16: October | B16: =1848.2/1000 -> 1.8482 | C16: =2144.7/1000 -> 2.1447
A17: average trip | B17: =AVERAGE(B10:B16) -> 2.050485714 | C17: =AVERAGE(C9:C16) -> 2.3913375
